Cogmind - Beta 13 @@@ ROGUE MODE // 2024.06.16 @ 12:10:26 Player: g30rg3 Result: Destroyed by G-47 Trooper with Particle Gun Performance ------------- Evolutions (3) 1500 Regions Visited (8) 1600 Robots Destroyed (53) 265 Value Destroyed (1730) 1730 Prototype IDs (25) 500 Alien Tech Used (0) 0 Bonus (285) 285 TOTAL SCORE: 5880 Bonus ------- Aligned with FarCom 300 Friendly Fire -15 Cogmind --------- Core Integrity 0/700 Matter 300/300 Energy 100/100 System Corruption 12% Temperature Cool (9) Movement Core (700) Ox13 Location -7/Lower Caves Parts ------- > --- POWER (2) -------- (None) > --- PROPULSION (4) --- (None) > --- UTILITY (5) ------ High-capacity Storage Unit Melee Analysis Suite Core Analyzer > --- WEAPON (2) ------- (None) > --- INVENTORY (20) --- Superbattery (1500) Advanced Visual Processing Unit Microactuators Reaction Control System Flak Gun Heavy Battle Rifle Gauss Cannon Makeshift Sword Peak State ------------ > --- POWER ------------ Light Nuclear Core Light Nuclear Core > --- PROPULSION ------- Armored Treads Carbon-fiber Leg Carbon-fiber Leg Improved Titanium Leg > --- UTILITY ---------- Improved Heat Sink Advanced Terrain Scan Processor Melee Analysis Suite Core Analyzer Microactuators > --- WEAPON ----------- Flak Gun Spear > --- INVENTORY -------- High-capacity Storage Unit Superbattery Advanced Visual Processing Unit Heavy Battle Rifle Heavy Missile Launcher [Rating: 47] Favorites ----------- Power Light Nuclear Core Engine Ion Engine Power Core Light Nuclear Core Propulsion Light Treads Treads Light Treads Leg Carbon-fiber Leg Wheel Wheel Hover Unit Improved Airjet Utility Large Storage Unit Device Seismic Detector Storage Large Storage Unit Processor Advanced Terrain Scan Processor Hackware Hacking Suite Protection Hardened Light Armor Plating Weapon Medium Laser Energy Gun Medium Laser Energy Cannon Beam Cannon Ballistic Gun Flak Gun Ballistic Cannon Gauss Cannon Launcher Heavy Missile Launcher Slashing Weapon Makeshift Axe Piercing Weapon Spear Build | -11 -10 -10 -10 -9 -8 -7 -7 -7 ------- Run | Yrd Mat Min Exi Min Mat Fac Low Low Slots Evolved 6 | . . . . . 4 2 . . Power 1 | . . . . . . 1 . . Propulsion 2 | . . . . . 2 . . . Utility 3 | . . . . . 2 1 . . Weapon . | . . . . . . . . . Parts Attached 59 | 8 . 1 . . 7 29 9 5 Power 12 | 2 . . . . 1 7 1 1 Engine 6 | 2 . . . . 1 2 . 1 Core 6 | . . . . . . 5 1 . Reactor . | . . . . . . . . . Propulsion 11 | 2 . . . . 1 4 4 . Treads 5 | 2 . . . . 1 . 2 . Leg 3 | . . . . . . 1 2 . Wheel 2 | . . . . . . 2 . . Hover 1 | . . . . . . 1 . . Flight . | . . . . . . . . . Utility 19 | 2 . 1 . . 2 10 3 1 Device 8 | 1 . . . . 1 5 1 . Storage 3 | 1 . 1 . . . . 1 . Processor 4 | . . . . . . 3 1 . Hackware 1 | . . . . . . 1 . . Protection 3 | . . . . . 1 1 . 1 Artifact . | . . . . . . . . . Weapon 17 | 2 . . . . 3 8 1 3 Energy Gun 4 | 1 . . . . 1 2 . . Energy Cannon 1 | . . . . . 1 . . . Ballistic Gun 5 | 1 . . . . . 3 1 . Ballistic Cannon 1 | . . . . . . 1 . . Launcher 3 | . . . . . 1 1 . 1 Special Weapon . | . . . . . . . . . Impact Weapon . | . . . . . . . . . Slashing Weapon 2 | . . . . . . . . 2 Piercing Weapon 1 | . . . . . . 1 . . Special Melee Weapon . | . . . . . . . . . Unidentified Prototypes 2 | . . . . . . 2 . . Parts Lost 35 | . . . . . 1 18 4 12 Power 7 | . . . . . 1 2 1 3 Propulsion 9 | . . . . . . 5 . 4 Utility 11 | . . . . . . 7 2 2 Weapon 8 | . . . . . . 4 1 3 Highest Loss Streak 12 | . . . . . 1 6 4 12 To Critical Strikes . | . . . . . . . . . Average Slot Usage (%) 86 | . 100 100 100 100 79 78 89 84 Engine 6 | . 14 14 14 14 9 8 . . Core 6 | . . . . . . 5 12 14 Treads 12 | . 28 28 28 28 21 7 4 6 Leg 8 | . . . . . . 3 19 22 Device 15 | . 14 14 14 14 12 20 13 6 Storage 6 | . 14 14 14 14 9 5 1 7 Processor 8 | . . . . . . 4 21 16 Protection 2 | . . . . . 9 3 1 . Energy Gun 4 | . 14 14 14 14 8 2 . . Energy Cannon 1 | . . . . . 8 2 . . Ballistic Gun 5 | . 14 14 14 14 . 2 5 . Ballistic Cannon 1 | . . . . . . 3 . . Piercing Weapon 2 | . . . . . . 1 7 6 Naked Turns . | . . . . . . . . . Heaviest Build 58 | 15 15 30 30 30 41 54 57 58 Greatest Support 60 | 40 40 40 40 40 60 60 50 50 Greatest Overweight (x) 19 | . . . . . 1 4 1 19 Average Overweight (x) . | . . . . . . . . 1 Largest Inventory Capacity 20 | 8 8 15 15 15 15 15 20 20 Average Capacity 12 | 7 8 10 15 15 15 12 7 20 Most Carried 15 | 5 5 7 9 13 14 15 10 12 Average Carried 9 | 3 5 5 7 11 13 11 5 10 Final Capacity 20 | 8 8 15 15 15 15 5 20 20 Final Carried 14 | 5 5 7 9 13 14 5 10 8 Class Distribution -------------------- 43% | Mutant 26% | Scavenger-Mutant 16% | Scavenger-Skirmisher 5% | Assassin 5% | Skirmisher Dominant Class ---------------- Mutant | -10/Materials Mutant | -10/Mines Mutant | -10/Exiles Mutant | -9/Mines Mutant | -8/Materials Scavenger-Skirmisher | -7/Factory Scavenger-Mutant | -7/Lower Caves Scavenger-Mutant | -7/Lower Caves Resources | -11 -10 -10 -10 -9 -8 -7 -7 -7 ----------- Run | Yrd Mat Min Exi Min Mat Fac Low Low Matter Collected 1319 | 304 . 13 . 15 121 529 275 62 Remotely . | . . . . . . . . . Salvage Created 1929 | 156 . . . 46 342 639 649 97 Parts 104 | 11 . . . 4 16 34 32 7 Haulers Intercepted . | . . . . . . . . . Recyclers Shooed 1 | . . . . . . 1 . . Parts Field Recycled . | . . . . . . . . . Retrieved Matter . | . . . . . . . . . Parts Self-Destructed 29 | . . . . . . . 26 3 Prevented 1 | . . . . . . . . 1 Kills | -11 -10 -10 -10 -9 -8 -7 -7 -7 ------- Run | Yrd Mat Min Exi Min Mat Fac Low Low Combat Hostiles Destroyed 39 | . . . . 1 10 14 13 1 Melee 15 | . . . . . . 1 13 1 Guns 5 | . . . . 1 1 3 . . Cannons 8 | . . . . . 2 6 . . AOE 10 | . . . . . 6 4 . . Classes Destroyed 14 | 2 . . . 1 5 4 1 1 Worker 5 | . . . . . 1 4 . . Builder 2 | . . . . . . 2 . . Tunneler 3 | 3 . . . . . . . . Recycler 4 | 1 . . . . . 3 . . Swarmer 13 | . . . . . 3 5 5 . Grunt 8 | . . . . 1 3 1 3 . Brawler 1 | . . . . . . 1 . . Duelist 3 | . . . . . . 1 2 . Sentry 4 | . . . . . 1 1 2 . Specialist 2 | . . . . . 2 . . . Hunter 3 | . . . . . 1 2 . . Programmer 4 | . . . . . . 3 . 1 Packrat 1 | . . . . . . . 1 . Samaritan 1 | . . . . . . . . 1 Mutant 1 | . . . . . . . 1 . Best Kill Streak 7 | 2 . . . 1 7 7 6 1 Combat Bots Only 6 | . . . . 1 6 4 6 1 Max Kills in Single Turn 5 | 1 . . . 1 5 3 1 1 Gunslinging . | . . . . . . . . . Exploded 4 | . . . . . 4 3 . . Melee 1 | . . . . . . 1 1 1 Uniques/NPCs Destroyed . | . . . . . . . . . Combat | -11 -10 -10 -10 -9 -8 -7 -7 -7 -------- Run | Yrd Mat Min Exi Min Mat Fac Low Low Hostile Shots Fired 273 | . . . . 6 32 76 71 88 Missed 58 | . . . . 1 4 12 22 19 Damage Taken 4055 | . . . . 57 486 1476 911 1125 Core 815 | . . . . 23 75 202 232 283 Absorbed by Shields . | . . . . . . . . . Core Remaining (%) 92 | 100 . . . 90 86 . . . Volleys Fired 90 | 8 1 . . 6 17 58 . . Largest 2 | 2 2 . . 2 2 2 . . Hottest 110 | 70 70 . . 70 110 108 . . Shots Fired 151 | 16 2 . . 11 29 90 3 . Gun 67 | 16 2 . . 11 12 23 3 . Cannon 78 | . . . . . 13 65 . . Launcher 6 | . . . . . 4 2 . . Special . | . . . . . . . . . Kinetic 79 | 8 1 . . 5 . 62 3 . Thermal 60 | 8 1 . . 6 25 20 . . Explosive 6 | . . . . . 4 2 . . Electromagnetic 6 | . . . . . . 6 . . Robot Hit Streak 17 | 6 1 . . 5 8 17 1 . Robot Miss Streak 7 | 1 1 . . 2 2 7 3 . Penetration Max 1 | . . . . . . 1 . . Secondary Targets 1 | . . . . . . 1 . . Max Gunslinging Chain 1 | . . . . . . 1 . . Shots Hit Robots 153 | 12 1 . . 7 20 63 42 8 Core Hits 87 | 5 . . . 2 15 43 19 3 Critical Kills . | . . . . . . . . . Critical Parts Destroyed 1 | . . . . . . 1 . . Critical Strikes 12 | . . . . . 2 5 3 2 Burn 2 | . . . . . 2 . . . Destroy 1 | . . . . . . 1 . . Blast 4 | . . . . . . 4 . . Sever 1 | . . . . . . . . 1 Impale 4 | . . . . . . . 3 1 Melee Attacks 65 | . . . . . . 2 53 10 Impact . | . . . . . . . . . Slashing 5 | . . . . . . . . 5 Piercing 60 | . . . . . . 2 53 5 Sneak Attacks 12 | . . . . . . . 11 1 Combat Hostiles . | . . . . . . . . . Follow-up Attacks . | . . . . . . . . . Damage Inflicted 4786 | 155 11 . . 102 809 1929 1465 315 Guns 671 | 155 11 . . 102 100 292 11 . Cannons 1346 | . . . . . 158 1188 . . Explosions 965 | . . . . . 551 414 . . Melee 1804 | . . . . . . 35 1454 315 Ramming . | . . . . . . . . . Kinetic 1297 | 92 11 . . 39 . 1144 11 . Thermal 748 | 63 . . . 63 258 364 . . Explosive 846 | . . . . . 551 295 . . Electromagnetic 91 | . . . . . . 91 . . Impact . | . . . . . . . . . Slashing 153 | . . . . . . . . 153 Piercing 1651 | . . . . . . 35 1454 162 Highest Corruption 12 | . . . . . . 12 12 12 Average Corruption 11 | . . . . . . 11 12 12 Corruption Purged . | . . . . . . . . . Corruption Blocked . | . . . . . . . . . Effects 83 | . . . . . . 18 53 12 Message Errors 22 | . . . . . . 5 13 4 Matter Fused 24 | . . . . . . 5 16 3 Heat Flow Errors 6 | . . . . . . 1 4 1 Energy Discharges 8 | . . . . . . 1 5 2 Parts Fused 1 | . . . . . . 1 . . Data Loss (minor) 12 | . . . . . . 3 7 2 Data Loss (major) 2 | . . . . . . . 2 . Misfires 4 | . . . . . . 1 3 . Alerts 1 | . . . . . . . 1 . Misdirections 3 | . . . . . . 1 2 . Overload Shots . | . . . . . . . . . Overflow Damage 152 | . . . . . 58 41 53 . Projectiles 41 | . . . . . . 41 . . Explosions 58 | . . . . . 58 . . . Melee 53 | . . . . . . . 53 . Knockbacks 11 | . . . . . . 11 . . Impact . | . . . . . . . . . Kinetic 9 | . . . . . . 9 . . Secondary 2 | . . . . . . 2 . . Self-Inflicted Damage 70 | . . . . . 14 56 . . Shots 2 | . . . . . 1 1 . . Rammed . | . . . . . . . . . Targets Rammed . | . . . . . . . . . Kicked . | . . . . . . . . . Crushed . | . . . . . . . . . Highest Temperature 487 | 36 9 . . 75 274 487 173 199 Average Temperature 104 | 15 6 . . 37 100 143 73 101 Received Heat Transfer 595 | . . . . 30 108 129 184 144 Effects 10 | . . . . . . 10 . . Shutdowns 4 | . . . . . . 4 . . Energy Bleed 1 | . . . . . . 1 . . Damage (minor) 2 | . . . . . . 2 . . Damage (major) 3 | . . . . . . 3 . . Siege Activations . | . . . . . . . . . Robots Corrupted . | . . . . . . . . . Combat Hostiles . | . . . . . . . . . Parts Fried . | . . . . . . . . . Impact Corruptions . | . . . . . . . . . Robots Melted 1 | . . . . . 1 . . . Combat Hostiles 1 | . . . . . 1 . . . Parts Melted 3 | . . . . 1 2 . . . Heat Transferred 1728 | 185 . . . 185 777 581 . . Parts Sabotaged . | . . . . . . . . . Parts Stolen . | . . . . . . . . . Parts Stripped . | . . . . . . . . . Power Chain Reactions 1 | . . . . . . 1 . . Alert | -11 -10 -10 -10 -9 -8 -7 -7 -7 ------- Run | Yrd Mat Min Exi Min Mat Fac Low Low Peak Influence 281 | 20 13 4 . 35 232 281 . . Initial 35 | . 13 4 . . . 35 . . Average 61 | 11 13 4 . 10 148 59 . . Maximum Alert Level 1 | . . . . . 1 1 . . Low Security (%) 92 | 100 100 100 . 100 53 99 . . Level 1 7 | . . . . . 46 . . . Level 2 . | . . . . . . . . . Level 3 . | . . . . . . . . . Level 4 . | . . . . . . . . . Level 5 . | . . . . . . . . . High Security . | . . . . . . . . . Max Security . | . . . . . . . . . Squads Dispatched 7 | . . . . 1 2 4 . . Investigation 2 | . . . . 1 . 1 . . Extermination 2 | . . . . . . 2 . . Reinforcement 2 | . . . . . 2 . . . Assault 1 | . . . . . . 1 . . Garrison . | . . . . . . . . . Intercept . | . . . . . . . . . Searches Triggered . | . . . . . . . . . Construction Impeded . | . . . . . . . . . Haulers Reinforced . | . . . . . . . . . Active Scanning Responses . | . . . . . . . . . Cargo Convoy Interrupts 1 | . . . . . . 1 . . Stealth | -11 -10 -10 -10 -9 -8 -7 -7 -7 --------- Run | Yrd Mat Min Exi Min Mat Fac Low Low Distress Signals 1 | . . . . . 1 . . . Communications Jammed 7 | . . . . . . 7 . . Distress Signals 7 | . . . . . . 7 . . Times Spotted 56 | . 1 . . 1 11 15 17 11 Peak Tracking Total 10 | . 1 . . 1 5 3 7 10 Tactical Retreats 3 | . . . . . . . 3 . Traps | -11 -10 -10 -10 -9 -8 -7 -7 -7 ------- Run | Yrd Mat Min Exi Min Mat Fac Low Low Traps Triggered 3 | . . . . . . 3 . . Indirectly . | . . . . . . . . . Trap Hack Attempts . | . . . . . . . . . Triggered . | . . . . . . . . . Disarmed . | . . . . . . . . . Reprogrammed . | . . . . . . . . . Reused . | . . . . . . . . . Traps Extracted . | . . . . . . . . . Installed . | . . . . . . . . . Triggered 2 | . . . . . . 1 . 1 Machines | -11 -10 -10 -10 -9 -8 -7 -7 -7 ---------- Run | Yrd Mat Min Exi Min Mat Fac Low Low Machines Disabled 2 | . . . . . . 1 1 . Max in Single Turn 1 | . . . . . . 1 1 . Garrison Access 1 | . . . . . . 1 . . Machines Repaired . | . . . . . . . . . Machines Dismantled . | . . . . . . . . . Machines Sabotaged . | . . . . . . . . . Overloaded Fab Kills . | . . . . . . . . . Hacking | -11 -10 -10 -10 -9 -8 -7 -7 -7 --------- Run | Yrd Mat Min Exi Min Mat Fac Low Low Machines Accessed 8 | . . . 4 1 . 3 . . Terminals 1 | . . . . . . 1 . . Fabricators . | . . . . . . . . . Repair Stations 1 | . . . . . . 1 . . Recycling Units 1 | . . . . . . 1 . . Scanalyzers . | . . . . . . . . . Garrison Access . | . . . . . . . . . Total Hacks 49 | . . . 43 1 . 5 . . Successful 45 | . . . 43 1 . 1 . . Failed 4 | . . . . . . 4 . . Catastrophic . | . . . . . . . . . Database Lockouts . | . . . . . . . . . Manual 1 | . . . 1 . . . . . Terminals 2 | . . . . . . 2 . . Fabricators . | . . . . . . . . . Repair Stations 1 | . . . . . . 1 . . Recycling Units 2 | . . . . . . 2 . . Scanalyzers . | . . . . . . . . . Garrison Access . | . . . . . . . . . Terminal Hacks 45 | . . . 43 1 . 1 . . Record 43 | . . . 42 . . 1 . . Open Door 1 | . . . . 1 . . . . Derelict Proto ID Bank 1 | . . . 1 . . . . . Fabricator Hacks . | . . . . . . . . . Repair Station Hacks . | . . . . . . . . . Recycling Unit Hacks . | . . . . . . . . . Scanalyzer . | . . . . . . . . . Garrison Access Hacks . | . . . . . . . . . Unauthorized Hacks . | . . . . . . . . . Terminals . | . . . . . . . . . Fabricators . | . . . . . . . . . Repair Stations . | . . . . . . . . . Recycling Units . | . . . . . . . . . Scanalyzers . | . . . . . . . . . Garrison Access . | . . . . . . . . . Data Cores Recovered . | . . . . . . . . . Used . | . . . . . . . . . Hacking Detections 3 | . . . . . . 3 . . Full Trace Events . | . . . . . . . . . Feedback Events . | . . . . . . . . . Feedback Blocked . | . . . . . . . . . Robot Schematics Acquired . | . . . . . . . . . Robots Built . | . . . . . . . . . Authchips . | . . . . . . . . . Time . | . . . . . . . . . Total Robot Build Rating . | . . . . . . . . . Part Schematics Acquired . | . . . . . . . . . Parts Built . | . . . . . . . . . Authchips . | . . . . . . . . . Time . | . . . . . . . . . Total Part Build Rating . | . . . . . . . . . Parts Repaired . | . . . . . . . . . Time . | . . . . . . . . . Parts Recycled . | . . . . . . . . . Recycled Matter . | . . . . . . . . . Retrieved Matter . | . . . . . . . . . Retrieved Components . | . . . . . . . . . Parts Scanalyzed . | . . . . . . . . . Part Schematics Acquired . | . . . . . . . . . Parts Damaged . | . . . . . . . . . Bothacking | -11 -10 -10 -10 -9 -8 -7 -7 -7 ------------ Run | Yrd Mat Min Exi Min Mat Fac Low Low Used RIF Installer . | . . . . . . . . . Robots Hacked . | . . . . . . . . . Non-combat . | . . . . . . . . . Combat . | . . . . . . . . . Robot Hacks Applied . | . . . . . . . . . Relay Couplers Released 1 | . . . . . . 1 . . Machine Destruction 1 | . . . . . . 1 . . Fabnet Peak Effective % . | . . . . . . . . . Robots Rewired . | . . . . . . . . . Allies Hacked . | . . . . . . . . . Hacks Repelled . | . . . . . . . . . Allies | -11 -10 -10 -10 -9 -8 -7 -7 -7 -------- Run | Yrd Mat Min Exi Min Mat Fac Low Low Total Allies 3 | . . . . 3 . . . . Largest Group 3 | . . . . 3 3 . . . Highest-Rated Group 40 | . . . . 40 40 . . . Highest-Rated Ally 16 | . . . . 16 16 . . . Total Orders . | . . . . . . . . . Ally Attacks 13 | . . . . . 13 . . . Total Damage 96 | . . . . . 96 . . . Kills . | . . . . . . . . . Allies Corrupted . | . . . . . . . . . Allies Melted . | . . . . . . . . . Intel | -11 -10 -10 -10 -9 -8 -7 -7 -7 ------- Run | Yrd Mat Min Exi Min Mat Fac Low Low Robot Analysis Total . | . . . . . . . . . Derelict Logs Recovered 2 | . . . . . . . 2 . Drone Launches . | . . . . . . . . . Drone Recoveries . | . . . . . . . . . Exploration | -11 -10 -10 -10 -9 -8 -7 -7 -7 ------------- Run | Yrd Mat Min Exi Min Mat Fac Low Low Turns Passed 5122 | 159 96 107 442 401 478 1737 1313 389 Spaces Moved 2732 | 78 59 65 276 222 195 844 811 182 Core 5 | 4 . . . . . . . 1 Treads 1167 | 74 59 65 276 222 195 276 . . Legs 1416 | . . . . . . 424 811 181 Wheels 144 | . . . . . . 144 . . Hover . | . . . . . . . . . Flight . | . . . . . . . . . Fastest Speed 50 | 50 160 160 160 160 160 110 123 123 Average Speed 160 | 154 160 160 160 160 166 169 142 197 Slowest Speed 1000 | 160 160 160 160 160 240 330 200 1000 Overloaded Moves . | . . . . . . . . . Propulsion Burnouts . | . . . . . . . . . Robots Hopped . | . . . . . . . . . Cave-ins Triggered . | . . . . . . . . . Exploration Rate (%) 34 | 5 20 21 63 41 22 21 90 31 Regions Visited 8 Branch Regions 5 Pre-discovered Areas 1 | . . . 1 . . . . . Known Exits Taken . | . . . . . . . . . Unknown Exits Taken 8 | 1 1 1 1 1 1 1 1 . Scrap Searched 8 | . . 1 . 1 . . 5 1 Spaces Dug 1 | . . . . . . . 1 . Terrain Destroyed 76 | . . . . . 36 39 1 . Melee 1 | . . . . . . . 1 . Projectile 12 | . . . . . . 12 . . AOE 63 | . . . . . 36 27 . . Terrain Rammed . | . . . . . . . . . Walls Destroyed . | . . . . . . . . . Machines Disabled . | . . . . . . . . . Actions | -11 -10 -10 -10 -9 -8 -7 -7 -7 --------- Run | Yrd Mat Min Exi Min Mat Fac Low Low Total 3240 | 97 59 68 277 258 317 1057 906 201 Wait 241 | . . . . 23 95 98 25 . Move 2724 | 77 58 64 275 221 194 843 810 182 Hop . | . . . . . . . . . Pick Up 40 | 4 . 2 2 6 4 14 6 2 Fast Attach 24 | 7 . . . . 1 9 7 . Attach 23 | . . . . . 3 14 1 5 Detach 6 | . . . . . . 3 1 2 Swap 12 | 1 . 1 . . 3 6 1 . Drop 15 | . . 1 . 2 . 10 2 . Fire 90 | 8 1 . . 6 17 58 . . Melee 65 | . . . . . . 2 53 10 Ram . | . . . . . . . . . Kick . | . . . . . . . . . Crush . | . . . . . . . . . Escape Stasis . | . . . . . . . . . Rewire . | . . . . . . . . . Trap . | . . . . . . . . . Miscellaneous . | . . . . . . . . . Route ------- -11/Scrapyard -10/Materials -10/Mines -10/Exiles (discovered 2 exits: *Min x2) -9/Mines -8/Materials -7/Factory -7/Lower Caves -7/Lower Caves History --------- Turn | Location | Event 7 | -11/Scrapyard | Discovered new exit (range 14) 160 | -11/Scrapyard | Entered Materials 221 | -10/Materials | Discovered new exit (range 12) 256 | -10/Materials | Entered Mines 298 | -10/Mines | Deemed a non-threat by the Exiles lab entrance 298 | -10/Mines | Discovered new exit (range 5) 313 | -10/Mines | Build established: Mutant 363 | -10/Mines | Entered Exiles 386 | -10/Exiles | Discovered new exit (range 15) 432 | -10/Exiles | Met 8R-AWN 455 | -10/Exiles | Met EX-HEX 501 | -10/Exiles | Met EX-BIN 527 | -10/Exiles | Aligned with FarCom system 528 | -10/Exiles | Given EX-Vault access code 573 | -10/Exiles | Opened EX-Vault 587 | -10/Exiles | Found Superbattery 639 | -10/Exiles | Exiles lab attacked by MAIN.C 707 | -10/Exiles | Learned location of Zion (-7) 789 | -10/Exiles | Discovered new exit (range 12) 805 | -10/Exiles | Left Exiles lab with Superbattery 805 | -10/Exiles | Entered Mines 862 | -9/Mines | Met a Derelict shopkeep closing up shop 1171 | -9/Mines | Discovered new exit (range 6) 1193 | -9/Mines | Assisted by bots powering up and referring to "LRC-V3" 1206 | -9/Mines | Entered Materials 1206 | -8/Materials | Accompanied by 3 allies 1206 | -8/Materials | Evolved 4 slots: Propulsion x2, Utility x2 1314 | -8/Materials | Lost 3 allies 1631 | -8/Materials | Discovered new exit (range 16) 1684 | -8/Materials | Entered Factory 1684 | -7/Factory | Evolved 2 slots: Power x1, Utility x1 1977 | -7/Factory | Build established: Scavenger-Skirmisher 2239 | -7/Factory | Lost 3 parts (2n1u) 2574 | -7/Factory | Lost 6 parts (2n2u2w) 2856 | -7/Factory | Build established: Mutant 3014 | -7/Factory | System corruption reached 10% 3044 | -7/Factory | Lost 6 parts (2p3u1w) 3335 | -7/Factory | Cargo convoy interrupted 3365 | -7/Factory | Discovered new exit (range 15) 3391 | -7/Factory | Build established: Assassin 3421 | -7/Factory | Entered Lower Caves 3601 | -7/Lower Caves | Attracted the attention of an 0b10 outpost 3663 | -7/Lower Caves | Core integrity fell below 50% 3691 | -7/Lower Caves | Lost 4 parts (1p2u1w) 3858 | -7/Lower Caves | Attacked by a delusional Derelict stockpiling parts 3988 | -7/Lower Caves | Build established: Scavenger-Mutant 4022 | -7/Lower Caves | Learned location of 1 exit from Factory 4242 | -7/Lower Caves | Learned Factory stockpile data 4717 | -7/Lower Caves | Discovered new exit (range 10) 4734 | -7/Lower Caves | Entered another Lower Caves area 5084 | -7/Lower Caves | Attracted the attention of an 0b10 base 5108 | -7/Lower Caves | Core integrity fell below 20% 5123 | -7/Lower Caves | Destroyed by G-47 Trooper with Particle Gun Last Messages --------------- Y-64 Sentinel Imp. Treads severed. System corrupted: Matter fused (-7). Acquired 17 matter. Arm. Treads destroyed. Slug penetrates Wall. Imp. Titanium Leg destroyed. Carbon-fiber Leg destroyed. Penetrated by Slug. Lgt. Nuclear Core destroyed. Imp. Heat Sink fries itself beyond repair. Imp. Heat Sink destroyed. Acquired 10 matter. Penetrated by Slug. Mak. Power Source destroyed. Acquired 10 matter. Penetrated by Slug. Carbon-fiber Leg destroyed. Hrd. Medium Armor Plating destroyed. Mak. Axe destroyed. Hvy. Missile Launcher destroyed. Map ----- +----------------------------------------------------+ | ?????????????????????????????????????????????????? | | ?????????????????????????????????????????????????? | | ?????????????????????????????????????????????????? | | ?????????????????????????????????????????????????? | | ?????????????????????????????????????????????????? | | ?????????????????????????????????????????????????? | | ?????????????????????????????????????????????????? | | ?????????????????????????????????????????????????? | | ???????????????????????????????????????? ???????? | | ???????????????????????????????????????? ???????? | | ???????????????????????????????????????? ???????? | | ?????????????? ?????????????????????? ???????? | | ?????????????? ????????????????????+ #???????? | | ??????????????? ???????????????????+ #???????? | | ???????????????? ##?????????????????# #???????? | | ????????????????? ??????????#?????# #???????? | | ?????????????????? ????????? #?????# #???????? | | ??????????????????? ??????? #?????# #???????? | | ????????????????????# ?????? #?????# #???????? | | ????????????????#???# ######//######## #???????? | | ????????????????# ??# !! #???????? | | ?????????????????# # g *%! ##??????? | | ?????????????????# ## = ### ### ##?????? | | ????????????# ## ssYg##### # #????## | | ???????????# s ## ### ## ###### | | ???????????# @## ### ### | | ???????????# ## ####?# | | ???????????## ### #?# ##### ##### | | ????????????#????# #?# ##### | | ?????????????????# ## #?# ## # | | ?????????????????# ?## #?# #?# | | ?????????????????# ???# ##?## ## ## | | ?????????????????#???? #????## ### #### | | ?????????????????????? ??????## ##?# ### | | ????????????????????? #???????####??##### | | ????????????????????? ?????#####????????# | | ????????????????????? ????## ##??????## | | ????????????????????# ???## ##??????## | | ????????????????????# ????# ##??????## | | ????????????????????? ????# #????#### | | ??????????????????????????# ##???# | | ??????????????????????????# ##### | | ??????????????????????????# | | ???????????????????????????# | | ???????????????????????????# | | ???????????????????????????# | | ???????????????????????????## ##### | | ????????????????????????????## #### ######???### | | ?????????????????????????????###???####??????????? | | ?????????????????????????????????????????????????? | +----------------------------------------------------+ Best States ------------- Heat Dissipation 48 Energy Generation 26 Energy Capacity 440 Matter Stores 300 Matter Capacity 300 Sight Range 16 Terrain Scan Range 16 Terrain Scan Density 210 Jamming Range 12 Armor Coverage 225 Melee Speed Boost 20 Evasion (%) 55 Melee Accuracy 5 Core Analysis 6 Recoil Reduction 4 Offensive Hacking 10 Item Schematics ----------------- None Robot Schematics ------------------ None Fabricated ------------ Nothing Alien Tech Used ----------------- None Achievements -------------- None Challenges ------------ None Game ------ Seed DisruptionSpikedNullifier Manual? 0 Play Time 00:49:39 Cumulative 14.0 hours Start 2024.05.30 @ 11:53:09 End 2024.06.16 @ 12:10:26 Sessions 6 Manual Loads 0 Difficulty Rogue Special Mode None Game No. 15 Rogue 15 Adventurer 0 Explorer 0 Win Type - Total 0 Types 0/0/0/0/0/0/0/0/0 Lore% 22 Gallery% 24 Achievement% 22 Wizard Run 0 Options --------- Layout 0 ASCII 0 Keyboard 1 Movement Numpad Keybinds 1 Fullscreen 1 Font 16/Terminus Map View 88x55 Zoom Use 0% Tactical HUD 0 Map Filters NONE Filters NONE Steam X RUN: fc91ab0e-6805-4a3a-b7ee-5b12c08ab2bd